[Event "Elite Hotels Open 2019"]
[Site "Vaxjo"]
[Date "2019.02.09"]
[Round "6.6"]
[White "Lindh, Fredrik"]
[Black "Golubka, Petro"]
[Result "0-1"]
[ECO "C74"]
[WhiteElo "2244"]
[BlackElo "2471"]
[Annotator "ChessBase"]
[PlyCount "116"]
[EventDate "2019.02.08"]
[EventType "swiss"]
[EventCountry "SWE"]
[SourceTitle "playchess.com"]
[Source "ChessBase"]
[SourceQuality "1"]
[TimeControl "5400+30"]

1. e4 {[%emt 0:00:00]} e5 {[%emt 0:00:00]} 2. Nf3 {[%emt 0:00:03]} Nc6 {[%emt 0:00:00]} 3. Bb5 {[%emt 0:00:06]} a6 {[%emt 0:00:00]} 4. Ba4 {[%emt 0:00:07]} d6 {[%emt 0:00:12]} 5. c3 {[%emt 0:00:46]} f5 {[%emt 0:00:05]} 6. exf5 {[%emt 0:01:42]} Bxf5 {[%emt 0:00:03]} 7. O-O {[%emt 0:06:06]} Bd3 {[%emt 0:03:22]} 8. Re1 {[%emt 0:00:43]} Be7 {[%emt 0:00:15]} 9. Bc2 {[%emt 0:00:31]} Bxc2 {[%emt 0:00:04]} 10. Qxc2 {[%emt 0:00:04]} Nf6 {[%emt 0:00:03]} 11. d4 {[%emt 0:00:19]} e4 {[%emt 0:00:05]} 12. Ng5 {[%emt 0:00:46]} d5 {[%emt 0:00:05]} 13. Nd2 {[%emt 0:00:29]} h6 {[%emt 0:00:24]} 14. Nh3 {[%emt 0:01:15]} O-O {[%emt 0:00:22]} 15. f3 {[%emt 0:00:08]} exf3 {[%emt 0:00:13]} 16. Nxf3 {[%emt 0:00:05]} Bd6 {[%emt 0:08:56]} 17. Qf5 {[%emt 0:08:46]} Rf7 {[%emt 0:02:28]} 18. Bf4 {[%emt 0:09:34]} Bf8 {[%emt 0:08:23]} 19. Ne5 {[%emt 0:33:15]} Nxe5 {[%emt 0:00:56]} 20. Bxe5 {[%emt 0:00:06]} Ne4 {[%emt 0:12:10]} 21. Qe6 {[%emt 0:02:40]} Qd7 {[%emt 0:00:27]} 22. Qxd7 {[%emt 0:00:22]} Rxd7 {[%emt 0:00:02]} 23. Nf2 {[%emt 0:01:25]} Ng5 {[%emt 0:01:02]} 24. Bf4 {[%emt 0:02:29]} c5 {[%emt 0:01:11]} 25. Be3 {[%emt 0:05:32]} Ne6 {[%emt 0:01:00]} 26. dxc5 {[%emt 0:01:02]} Nxc5 {[%emt 0:00:29]} 27. Rad1 {[%emt 0:00:18]} Na4 {[%emt 0:00:25]} 28. Nd3 {[%emt 0:02:47]} Rc8 {[%emt 0:02:02]} 29. Bd4 {[%emt 0:01:44]} Nc5 {[%emt 0:01:40]} 30. Nf4 {[%emt 0:08:16]} Na4 {[%emt 0:05:53]} 31. Rd2 {[%emt 0:00:52]} b5 {[%emt 0:00:24]} 32. Ng6 {[%emt 0:02:49]} Bd6 {[%emt 0:01:10]} 33. Be5 {[%emt 0:02:16]} Re8 {[%emt 0:03:34]} 34. Ree2 {[%emt 0:00:44]} Kh7 {[%emt 0:14:23]} 35. Bxd6 {[%emt 0:01:41]} Rxe2 {[%emt 0:00:16]} 36. Nf8+ {[%emt 0:00:42]} Kg8 {[%emt 0:00:05]} 37. Rxe2 {[%emt 0:00:03]} Rxd6 {[%emt 0:00:05]} 38. Ne6 {[%emt 0:00:20]} Nxb2 {[%emt 0:00:13]} 39. Nxg7 {[%emt 0:00:41]} Na4 {[%emt 0:01:23]} 40. Nf5 {[%emt 0:00:22]} Rd7 {[%emt 0:01:33]} 41. Nxh6+ {[%emt 0:02:05]} Kh7 {[%emt 0:00:25]} 42. Ng4 {[%emt 0:00:16]} Nxc3 {[%emt 0:00:12]} 43. Re6 {[%emt 0:03:55]} Ra7 {[%emt 0:00:14]} 44. a3 {[%emt 0:00:33]} a5 {[%emt 0:00:13]} 45. Rc6 {[%emt 0:01:34]} d4 {[%emt 0:00:33]} 46. Ne5 {[%emt 0:01:23]} b4 {[%emt 0:00:48]} 47. axb4 {[%emt 0:00:18]} a4 {[%emt 0:00:12]} 48. Nf3 {[%emt 0:01:00]} Nb5 {[%emt 0:00:43]} 49. Rc1 {[%emt 0:00:51]} a3 {[%emt 0:00:10]} 50. Nd2 {[%emt 0:00:26]} Nc3 {[%emt 0:00:15]} 51. Kf2 {[%emt 0:00:33]} a2 {[%emt 0:00:05]} 52. Nb3 {[%emt 0:00:14]} Ra3 {[%emt 0:00:38]} 53. Na1 {[%emt 0:00:05]} Ne4+ {[%emt 0:00:36]} 54. Ke1 {[%emt 0:00:46]} Re3+ {[%emt 0:00:55]} 55. Kd1 {[%emt 0:00:13]} d3 {[%emt 0:01:28]} 56. Nb3 {[%emt 0:00:57]} Re2 {[%emt 0:01:26]} 57. Rc4 {[%emt 0:00:52]} Nf2+ {[%emt 0:00:09]} 58. Kc1 {[%emt 0:00:02]} d2+ {[%emt 0:00:11]} 0-1

[Event "Elite Hotels Open 2019"]
[Site "Vaxjo"]
[Date "2019.02.09"]
[Round "6.7"]
[White "Olofsson-Dolk, Mattis"]
[Black "Cramling, Pia"]
[Result "0-1"]
[ECO "B43"]
[WhiteElo "2172"]
[BlackElo "2462"]
[Annotator "ChessBase"]
[PlyCount "82"]
[EventDate "2019.02.08"]
[EventType "swiss"]
[EventCountry "SWE"]
[SourceTitle "playchess.com"]
[Source "ChessBase"]
[SourceQuality "1"]
[TimeControl "5400+30"]

1. e4 {[%emt 0:00:00]} c5 {[%emt 0:00:00]} 2. Nf3 {[%emt 0:00:00]} e6 {[%emt 0:00:35]} 3. d4 {[%emt 0:00:00]} cxd4 {[%emt 0:00:04]} 4. Nxd4 {[%emt 0:00:00]} a6 {[%emt 0:00:14]} 5. Nc3 {[%emt 0:00:01]} Qc7 {[%emt 0:00:06]} 6. Bd3 {[%emt 0:00:13]} Nf6 {[%emt 0:00:12]} 7. O-O {[%emt 0:00:17]} d6 {[%emt 0:00:19]} 8. Kh1 {[%emt 0:01:03]} Nbd7 {[%emt 0:04:53]} 9. f4 {[%emt 0:01:35]} Be7 {[%emt 0:00:59]} 10. Qe2 {[%emt 0:01:19]} b5 {[%emt 0:00:47]} 11. Bd2 {[%emt 0:05:53]} Bb7 {[%emt 0:00:25]} 12. Rae1 {[%emt 0:00:46]} b4 {[%emt 0:01:38]} 13. Nd1 {[%emt 0:02:50]} Nc5 {[%emt 0:03:10]} 14. Nf2 {[%emt 0:05:40]} Nxd3 {[%emt 0:13:26]} 15. cxd3 {[%emt 0:00:22]} Qb6 {[%emt 0:02:01]} 16. Be3 {[%emt 0:05:19]} Qd8 {[%emt 0:00:21]} 17. Rc1 {[%emt 0:01:42]} Qd7 {[%emt 0:04:42]} 18. b3 {[%emt 0:13:51]} O-O {[%emt 0:03:09]} 19. f5 {[%emt 0:05:02]} e5 {[%emt 0:06:14]} 20. Nf3 {[%emt 0:00:19]} Rfc8 {[%emt 0:01:03]} 21. Bg5 {[%emt 0:05:51]} a5 {[%emt 0:08:07]} 22. Bxf6 {[%emt 0:04:41]} Bxf6 {[%emt 0:00:22]} 23. Ng4 {[%emt 0:00:11]} Be7 {[%emt 0:11:51]} 24. Ne3 {[%emt 0:00:51]} Qb5 {[%emt 0:01:24]} 25. Rc4 {[%emt 0:06:43]} Re8 {[%emt 0:08:07]} 26. Rfc1 {[%emt 0:03:00]} Rad8 {[%emt 0:01:03]} 27. Rc7 {[%emt 0:08:56]} Bxe4 {[%emt 0:04:26]} 28. Ne1 {[%emt 0:12:02]} Bb7 {[%emt 0:04:14]} 29. Qg4 {[%emt 0:01:24]} f6 {[%emt 0:09:37]} 30. Qc4+ {[%emt 0:03:08]} Qxc4 {[%emt 0:00:07]} 31. Nxc4 {[%emt 0:00:27]} Bd5 {[%emt 0:03:00]} 32. Nb6 {[%emt 0:00:51]} Bf7 {[%emt 0:00:15]} 33. Ra7 {[%emt 0:00:54]} Rb8 {[%emt 0:00:35]} 34. Nc4 {[%emt 0:00:56]} Rbc8 {[%emt 0:01:05]} 35. Rc2 {[%emt 0:02:03]} Bf8 {[%emt 0:03:58]} 36. Rxa5 {[%emt 0:02:53]} d5 {[%emt 0:00:15]} 37. Ne3 {[%emt 0:02:28]} Rxc2 {[%emt 0:01:06]} 38. N1xc2 {[%emt 0:00:02]} Rc8 {[%emt 0:00:58]} 39. g3 {[%emt 0:01:40]} Rc3 {[%emt 0:00:38]} 40. Ra8 {[%emt 0:03:43]} d4 {[%emt 0:00:32]} 41. Nc4 {[%emt 0:01:01]} Bd5+ {[%emt 0:00:13]} 0-1

[Event "Elite Hotels Open 2019"]
[Site "Vaxjo"]
[Date "2019.02.09"]
[Round "6.8"]
[White "Nilsson, Patrik 1978"]
[Black "Brynell, Stellan"]
[Result "1/2-1/2"]
[ECO "C01"]
[WhiteElo "2169"]
[BlackElo "2400"]
[Annotator "ChessBase"]
[PlyCount "94"]
[EventDate "2019.02.08"]
[EventType "swiss"]
[EventCountry "SWE"]
[SourceTitle "playchess.com"]
[Source "ChessBase"]
[SourceQuality "1"]
[TimeControl "5400+30"]

1. e4 {[%emt 0:00:00]} e6 {[%emt 0:00:00]} 2. d4 {[%emt 0:00:00]} d5 {[%emt 0:00:00]} 3. exd5 {[%emt 0:00:04]} exd5 {[%emt 0:00:00]} 4. c4 {[%emt 0:00:05]} Nf6 {[%emt 0:00:22]} 5. Nc3 {[%emt 0:00:14]} Bd6 {[%emt 0:01:30]} 6. Bg5 {[%emt 0:13:18]} O-O {[%emt 0:03:45]} 7. Bd3 {[%emt 0:08:26]} dxc4 {[%emt 0:08:39]} 8. Bxc4 {[%emt 0:00:31]} Re8+ {[%emt 0:09:43]} 9. Nge2 {[%emt 0:00:41]} Be6 {[%emt 0:01:12]} 10. Bd3 {[%emt 0:03:22]} c6 {[%emt 0:01:53]} 11. Qd2 {[%emt 0:07:38]} Nbd7 {[%emt 0:01:13]} 12. O-O {[%emt 0:06:27]} h6 {[%emt 0:04:47]} 13. Bf4 {[%emt 0:00:28]} Nb6 {[%emt 0:02:40]} 14. Rfe1 {[%emt 0:05:48]} Bc4 {[%emt 0:10:38]} 15. Bc2 {[%emt 0:06:50]} Qc7 {[%emt 0:05:30]} 16. Bxd6 {[%emt 0:05:31]} Qxd6 {[%emt 0:00:04]} 17. Ng3 {[%emt 0:00:28]} Be6 {[%emt 0:05:38]} 18. Nge4 {[%emt 0:02:38]} Nxe4 {[%emt 0:09:13]} 19. Nxe4 {[%emt 0:00:28]} Qd8 {[%emt 0:02:54]} 20. Nc5 {[%emt 0:01:38]} Bc8 {[%emt 0:01:00]} 21. Rxe8+ {[%emt 0:06:16]} Qxe8 {[%emt 0:00:02]} 22. Re1 {[%emt 0:00:09]} Qf8 {[%emt 0:01:14]} 23. Qd3 {[%emt 0:00:30]} g6 {[%emt 0:00:11]} 24. Bb3 {[%emt 0:00:30]} Bf5 {[%emt 0:05:08]} 25. Qf3 {[%emt 0:00:40]} Re8 {[%emt 0:01:33]} 26. Rxe8 {[%emt 0:06:34]} Qxe8 {[%emt 0:00:05]} 27. g4 {[%emt 0:00:07]} Bc8 {[%emt 0:02:57]} 28. h3 {[%emt 0:06:10]} Qe7 {[%emt 0:03:34]} 29. Qe3 {[%emt 0:06:58]} Qxe3 {[%emt 0:02:39]} 30. fxe3 {[%emt 0:00:05]} Kf8 {[%emt 0:01:22]} 31. Kf2 {[%emt 0:00:33]} Ke7 {[%emt 0:00:52]} 32. Kf3 {[%emt 0:00:58]} Nd7 {[%emt 0:00:55]} 33. Nd3 {[%emt 0:00:50]} g5 {[%emt 0:01:28]} 34. e4 {[%emt 0:01:05]} f6 {[%emt 0:00:25]} 35. e5 {[%emt 0:01:48]} b6 {[%emt 0:00:31]} 36. Ke4 {[%emt 0:01:25]} Ba6 {[%emt 0:04:22]} 37. Nb4 {[%emt 0:01:06]} Bb7 {[%emt 0:00:09]} 38. Kf5 {[%emt 0:00:30]} fxe5 {[%emt 0:03:19]} 39. dxe5 {[%emt 0:00:10]} Nf8 {[%emt 0:00:07]} 40. Nc2 {[%emt 0:01:30]} Bc8+ {[%emt 0:02:57]} 41. Ke4 {[%emt 0:00:08]} Nd7 {[%emt 0:01:28]} 42. Bc4 {[%emt 0:04:14]} Nc5+ {[%emt 0:00:36]} 43. Kd4 {[%emt 0:01:36]} a5 {[%emt 0:01:43]} 44. Ne3 {[%emt 0:00:45]} Ne6+ {[%emt 0:00:58]} 45. Ke4 {[%emt 0:00:22]} Nc5+ {[%emt 0:00:55]} 46. Kd4 {[%emt 0:00:18]} Ne6+ {[%emt 0:00:32]} 47. Ke4 {[%emt 0:00:12]} Nc5+ {[%emt 0:00:17]} 1/2-1/2

[Event "Elite Hotels Open 2019"]
[Site "Vaxjo"]
[Date "2019.02.09"]
[Round "6.9"]
[White "Lindberg, Bengt"]
[Black "Olsson, William"]
[Result "1-0"]
[ECO "B76"]
[WhiteElo "2377"]
[BlackElo "2011"]
[Annotator "NA"]
[PlyCount "75"]
[EventDate "2019.02.08"]
[EventType "swiss"]
[EventCountry "SWE"]
[SourceTitle "playchess.com"]
[Source "ChessBase"]
[SourceQuality "1"]
[TimeControl "5400+30"]

1. e4 {[%emt 0:00:00]} c5 {[%emt 0:00:00]} 2. Nf3 {[%emt 0:00:00]} d6 {[%emt 0:00:00]} 3. d4 {[%emt 0:00:00]} cxd4 {[%emt 0:00:00]} 4. Nxd4 {[%emt 0:00:00]} Nf6 {[%emt 0:00:03]} 5. Nc3 {[%emt 0:00:00]} g6 {[%emt 0:00:05]} 6. Be3 {[%emt 0:00:23]} Bg7 {[%emt 0:00:04]} 7. f3 {[%emt 0:00:12]} O-O {[%emt 0:00:06]} 8. Qd2 {[%emt 0:00:14]} Nc6 {[%emt 0:00:04]} 9. O-O-O {[%emt 0:00:42]} d5 {[%emt 0:01:10]} 10. Qe1 {[%emt 0:00:09]} e5 {[%emt 0:08:07]} 11. Nxc6 {[%emt 0:00:06]} bxc6 {[%emt 0:00:04]} 12. exd5 {[%emt 0:00:05]} Nxd5 {[%emt 0:00:22]} 13. Bc4 {[%emt 0:00:07]} Be6 {[%emt 0:00:06]} 14. Kb1 {[%emt 0:00:31]} Qd7 {[%emt 0:04:56]} 15. Ne4 {[%emt 0:03:01]} Rfd8 {[%emt 0:05:33]} 16. Bg5 {[%emt 0:14:41]} Qc7 {[%emt 0:03:26]} 17. Bxd8 {[%emt 0:03:06]} Rxd8 {[%emt 0:00:05]} 18. Bb3 {[%emt 0:11:28]} Rb8 {[%emt 0:07:34]} 19. Qh4 {[%emt 0:05:07]} h6 {[%emt 0:03:17]} 20. Rd2 {[%emt 0:04:52]} Qb6 {[%emt 0:02:34]} 21. Qf2 {[%emt 0:03:52]} Qc7 {[%emt 0:00:36]} 22. Rhd1 {[%emt 0:02:15]} a5 {[%emt 0:01:13]} 23. Nc5 {[%emt 0:03:27]} Bc8 {[%emt 0:08:51]} 24. g4 {[%emt 0:00:34]} Bf8 {[%emt 0:02:01]} 25. h4 {[%emt 0:06:04]} Qb6 {[%emt 0:04:06]} 26. Na4 {[%emt 0:02:55]} Qb7 {[%emt 0:02:17]} 27. h5 {[%emt 0:01:13]} g5 {[%emt 0:00:12]} 28. Qe1 {[%emt 0:02:56]} Be6 {[%emt 0:03:58]} 29. Qxe5 {[%emt 0:03:34]} Bg7 {[%emt 0:00:45]} 30. Qe4 {[%emt 0:00:15]} Qe7 {[%emt 0:02:28]} 31. c4 {[%emt 0:08:01]} Nf4 {[%emt 0:07:34]} 32. Qxc6 {[%emt 0:03:00]} Bf6 {[%emt 0:01:36]} 33. c5 {[%emt 0:04:41]} Bxb3 {[%emt 0:01:41]} 34. axb3 {[%emt 0:00:01]} Ne6 {[%emt 0:00:12]} 35. Rd7 {[%emt 0:01:55]} Qe8 {[%emt 0:00:16]} 36. Qd5 {[%emt 0:00:36]} Rb4 {[%emt 0:00:35]} 37. c6 {[%emt 0:01:18]} Qb8 {[%emt 0:00:40]} 38. c7 {[%emt 0:01:29]} 1-0

[Event "Elite Hotels Open 2019"]
[Site "Vaxjo"]
[Date "2019.02.09"]
[Round "6.10"]
[White "Barkhagen, Jonas"]
[Black "Rasti, Arvin"]
[Result "1-0"]
[ECO "E32"]
[WhiteElo "2429"]
[BlackElo "1952"]
[Annotator "NA"]
[PlyCount "79"]
[EventDate "2019.02.08"]
[EventType "swiss"]
[EventCountry "SWE"]
[SourceTitle "playchess.com"]
[Source "ChessBase"]
[SourceQuality "1"]
[TimeControl "5400+30"]

1. d4 {[%emt 0:00:00]} Nf6 {[%emt 0:00:00]} 2. c4 {[%emt 0:00:00]} e6 {[%emt 0:00:00]} 3. Nc3 {[%emt 0:00:02]} Bb4 {[%emt 0:00:02]} 4. Qc2 {[%emt 0:00:07]} O-O {[%emt 0:00:08]} 5. a3 {[%emt 0:00:03]} Bxc3+ {[%emt 0:00:07]} 6. Qxc3 {[%emt 0:00:04]} d5 {[%emt 0:00:14]} 7. cxd5 {[%emt 0:07:02]} Ne4 {[%emt 0:00:52]} 8. Qc2 {[%emt 0:02:39]} exd5 {[%emt 0:00:35]} 9. Nf3 {[%emt 0:00:08]} Nc6 {[%emt 0:08:49]} 10. Bf4 {[%emt 0:03:03]} Bf5 {[%emt 0:04:15]} 11. Qa4 {[%emt 0:00:46]} Qd7 {[%emt 0:07:22]} 12. e3 {[%emt 0:01:01]} a6 {[%emt 0:01:13]} 13. Be2 {[%emt 0:04:11]} h6 {[%emt 0:03:08]} 14. Qd1 {[%emt 0:03:41]} Rab8 {[%emt 0:06:55]} 15. O-O {[%emt 0:02:14]} g5 {[%emt 0:05:23]} 16. Bg3 {[%emt 0:16:12]} Nxg3 {[%emt 0:01:21]} 17. hxg3 {[%emt 0:00:17]} Rfe8 {[%emt 0:03:20]} 18. Rc1 {[%emt 0:00:10]} f6 {[%emt 0:09:53]} 19. b4 {[%emt 0:04:42]} Nd8 {[%emt 0:02:18]} 20. Ne1 {[%emt 0:01:42]} Ne6 {[%emt 0:02:16]} 21. Nd3 {[%emt 0:02:01]} b6 {[%emt 0:02:57]} 22. Qd2 {[%emt 0:08:27]} Re7 {[%emt 0:03:17]} 23. Rc3 {[%emt 0:02:05]} Kg7 {[%emt 0:06:43]} 24. Nc1 {[%emt 0:01:34]} a5 {[%emt 0:03:20]} 25. bxa5 {[%emt 0:01:54]} bxa5 {[%emt 0:00:08]} 26. Bd3 {[%emt 0:00:11]} Bxd3 {[%emt 0:02:52]} 27. Nxd3 {[%emt 0:00:54]} Qa4 {[%emt 0:03:47]} 28. Rfc1 {[%emt 0:01:04]} Rb3 {[%emt 0:01:33]} 29. Rxb3 {[%emt 0:05:36]} Qxb3 {[%emt 0:00:05]} 30. Qc3 {[%emt 0:00:40]} Qxc3 {[%emt 0:05:42]} 31. Rxc3 {[%emt 0:00:07]} Re8 {[%emt 0:00:19]} 32. Rc6 {[%emt 0:03:43]} Kf7 {[%emt 0:00:52]} 33. Nc5 {[%emt 0:00:20]} Nxc5 {[%emt 0:08:53]} 34. Rxc7+ {[%emt 0:00:10]} Nd7 {[%emt 0:00:17]} 35. Rxd7+ {[%emt 0:00:06]} Ke6 {[%emt 0:00:09]} 36. Ra7 {[%emt 0:00:14]} Rb8 {[%emt 0:00:30]} 37. g4 {[%emt 0:00:36]} Rb1+ {[%emt 0:01:00]} 38. Kh2 {[%emt 0:00:09]} Rb2 {[%emt 0:00:31]} 39. Kg3 {[%emt 0:00:09]} Rb5 {[%emt 0:00:51]} 40. a4 {[%emt 0:00:22]} 1-0

[Event "Elite Hotels Open 2019"]
[Site "Vaxjo"]
[Date "2019.02.09"]
[Round "6.11"]
[White "Marttala, Thomas"]
[Black "Lindgren, Philip"]
[Result "1/2-1/2"]
[ECO "B51"]
[WhiteElo "2141"]
[BlackElo "2379"]
[Annotator "NA"]
[PlyCount "94"]
[EventDate "2019.02.08"]
[EventType "swiss"]
[EventCountry "SWE"]
[SourceTitle "playchess.com"]
[Source "ChessBase"]
[SourceQuality "1"]
[TimeControl "5400+30"]

1. e4 {[%emt 0:00:00]} c5 {[%emt 0:00:00]} 2. Nf3 {[%emt 0:00:06]} d6 {[%emt 0:00:00]} 3. Bb5+ {[%emt 0:00:50]} Nd7 {[%emt 0:00:00]} 4. c4 {[%emt 0:00:41]} Ngf6 {[%emt 0:04:14]} 5. Nc3 {[%emt 0:00:11]} a6 {[%emt 0:03:19]} 6. Ba4 {[%emt 0:09:53]} Qc7 {[%emt 0:08:35]} 7. O-O {[%emt 0:11:25]} e6 {[%emt 0:03:23]} 8. d4 {[%emt 0:11:31]} cxd4 {[%emt 0:03:42]} 9. Qxd4 {[%emt 0:02:22]} Be7 {[%emt 0:01:01]} 10. Bg5 {[%emt 0:08:48]} O-O {[%emt 0:04:07]} 11. Bxd7 {[%emt 0:00:41]} Bxd7 {[%emt 0:01:43]} 12. Rac1 {[%emt 0:01:32]} Rac8 {[%emt 0:04:57]} 13. Rfd1 {[%emt 0:08:44]} Rfd8 {[%emt 0:08:13]} 14. b3 {[%emt 0:06:26]} Be8 {[%emt 0:02:00]} 15. h3 {[%emt 0:00:39]} Qa5 {[%emt 0:06:53]} 16. Qd2 {[%emt 0:06:47]} Kf8 {[%emt 0:05:22]} 17. a4 {[%emt 0:09:07]} Qb4 {[%emt 0:11:22]} 18. Nd4 {[%emt 0:03:40]} Qa5 {[%emt 0:03:16]} 19. Qe3 {[%emt 0:03:58]} Kg8 {[%emt 0:03:27]} 20. f4 {[%emt 0:01:23]} h6 {[%emt 0:04:20]} 21. Bh4 {[%emt 0:02:38]} Qh5 {[%emt 0:08:00]} 22. Bf2 {[%emt 0:03:12]} Nd7 {[%emt 0:00:59]} 23. g4 {[%emt 0:02:12]} Qg6 {[%emt 0:02:08]} 24. Qf3 {[%emt 0:01:21]} Nc5 {[%emt 0:04:47]} 25. h4 {[%emt 0:01:24]} Bf6 {[%emt 0:00:51]} 26. f5 {[%emt 0:01:00]} Qh7 {[%emt 0:00:47]} 27. Rb1 {[%emt 0:00:34]} Bd7 {[%emt 0:03:04]} 28. Qg2 {[%emt 0:00:46]} Be5 {[%emt 0:00:51]} 29. Nce2 {[%emt 0:01:11]} h5 {[%emt 0:01:12]} 30. Nf3 {[%emt 0:01:02]} hxg4 {[%emt 0:01:36]} 31. Nxe5 {[%emt 0:00:52]} dxe5 {[%emt 0:00:05]} 32. Bxc5 {[%emt 0:00:09]} Rxc5 {[%emt 0:00:05]} 33. fxe6 {[%emt 0:00:19]} fxe6 {[%emt 0:00:21]} 34. Qxg4 {[%emt 0:00:06]} Qh6 {[%emt 0:01:42]} 35. Rd3 {[%emt 0:00:16]} Rc7 {[%emt 0:00:36]} 36. Rbd1 {[%emt 0:00:12]} Qf6 {[%emt 0:00:29]} 37. Rf1 {[%emt 0:01:01]} Qe7 {[%emt 0:00:20]} 38. Rfd1 {[%emt 0:00:32]} Rf8 {[%emt 0:00:18]} 39. Ng3 {[%emt 0:00:45]} Rf4 {[%emt 0:00:50]} 40. Qh5 {[%emt 0:00:25]} Rxh4 {[%emt 0:00:31]} 41. Qxe5 {[%emt 0:00:19]} Bc6 {[%emt 0:00:31]} 42. Rd8+ {[%emt 0:00:48]} Kh7 {[%emt 0:00:05]} 43. Kg2 {[%emt 0:00:51]} Rh6 {[%emt 0:00:34]} 44. Qf4 {[%emt 0:00:33]} Rh4 {[%emt 0:00:52]} 45. Qe5 {[%emt 0:00:17]} Rh6 {[%emt 0:00:21]} 46. Qf4 {[%emt 0:00:07]} Rh4 {[%emt 0:00:07]} 47. Qe5 {[%emt 0:00:06]} Rh6 {[%emt 0:00:06]} 1/2-1/2

[Event "Elite Hotels Open 2019"]
[Site "Vaxjo"]
[Date "2019.02.09"]
[Round "6.12"]
[White "Dragicevic, Drazen"]
[Black "Stahlberg, David"]
[Result "1/2-1/2"]
[ECO "A06"]
[WhiteElo "2339"]
[BlackElo "2079"]
[Annotator "NA"]
[PlyCount "63"]
[EventDate "2019.02.08"]
[EventType "swiss"]
[EventCountry "SWE"]
[SourceTitle "playchess.com"]
[Source "ChessBase"]
[SourceQuality "1"]
[TimeControl "5400+30"]

1. Nf3 {[%emt 0:00:00]} d5 {[%emt 0:00:00]} 2. g3 {[%emt 0:00:00]} Nf6 {[%emt 0:00:15]} 3. Bg2 {[%emt 0:00:05]} e6 {[%emt 0:00:08]} 4. O-O {[%emt 0:00:17]} Be7 {[%emt 0:00:08]} 5. c4 {[%emt 0:02:06]} O-O {[%emt 0:00:18]} 6. b3 {[%emt 0:03:01]} c6 {[%emt 0:00:39]} 7. d3 {[%emt 0:02:20]} b6 {[%emt 0:01:55]} 8. a3 {[%emt 0:03:07]} Bb7 {[%emt 0:00:30]} 9. b4 {[%emt 0:05:54]} Nbd7 {[%emt 0:10:13]} 10. Bb2 {[%emt 0:09:42]} dxc4 {[%emt 0:04:10]} 11. dxc4 {[%emt 0:00:24]} Qc7 {[%emt 0:00:14]} 12. Qb3 {[%emt 0:05:10]} c5 {[%emt 0:01:34]} 13. b5 {[%emt 0:09:40]} Ne4 {[%emt 0:05:14]} 14. Ra2 {[%emt 0:10:19]} Bf6 {[%emt 0:00:54]} 15. Bc1 {[%emt 0:00:57]} Rad8 {[%emt 0:00:56]} 16. a4 {[%emt 0:03:19]} Rfe8 {[%emt 0:05:32]} 17. a5 {[%emt 0:05:30]} bxa5 {[%emt 0:04:42]} 18. Bf4 {[%emt 0:03:04]} e5 {[%emt 0:00:37]} 19. Be3 {[%emt 0:02:58]} Nd6 {[%emt 0:07:29]} 20. Bd2 {[%emt 0:07:02]} Nb6 {[%emt 0:00:53]} 21. Bxa5 {[%emt 0:01:05]} e4 {[%emt 0:02:05]} 22. Ne1 {[%emt 0:00:51]} e3 {[%emt 0:11:35]} 23. f3 {[%emt 0:00:25]} Nf5 {[%emt 0:03:43]} 24. Nd3 {[%emt 0:01:40]} Nd4 {[%emt 0:01:11]} 25. Qa3 {[%emt 0:00:37]} Rc8 {[%emt 0:02:30]} 26. Bh3 {[%emt 0:01:36]} Rcd8 {[%emt 0:06:01]} 27. Nf4 {[%emt 0:16:54]} Qd6 {[%emt 0:08:58]} 28. Qc1 {[%emt 0:03:51]} Nb3 {[%emt 0:01:34]} 29. Qc2 {[%emt 0:00:09]} Nd4 {[%emt 0:03:28]} 30. Qc1 {[%emt 0:00:01]} Nb3 {[%emt 0:00:44]} 31. Qc2 {[%emt 0:01:46]} Nd4 {[%emt 0:00:10]} 32. Qc1 {[%emt 0:00:57]} 1/2-1/2

[Event "Elite Hotels Open 2019"]
[Site "Vaxjo"]
[Date "2019.02.09"]
[Round "6.13"]
[White "Jogstad, Daniel"]
[Black "Johansson, Gunnar"]
[Result "1-0"]
[ECO "B40"]
[WhiteElo "2127"]
[BlackElo "2259"]
[Annotator "NA"]
[PlyCount "119"]
[EventDate "2019.02.08"]
[EventType "swiss"]
[EventCountry "SWE"]
[SourceTitle "playchess.com"]
[Source "ChessBase"]
[SourceQuality "1"]
[TimeControl "5400+30"]

1. e4 {[%emt 0:00:00]} c5 {[%emt 0:00:00]} 2. Nf3 {[%emt 0:00:00]} e6 {[%emt 0:00:00]} 3. g3 {[%emt 0:00:00]} d5 {[%emt 0:00:54]} 4. exd5 {[%emt 0:00:00]} exd5 {[%emt 0:00:06]} 5. d4 {[%emt 0:00:20]} Nf6 {[%emt 0:00:23]} 6. Bg2 {[%emt 0:00:58]} Be7 {[%emt 0:05:46]} 7. O-O {[%emt 0:00:55]} O-O {[%emt 0:00:33]} 8. dxc5 {[%emt 0:04:35]} Bxc5 {[%emt 0:08:33]} 9. Nbd2 {[%emt 0:00:09]} Nc6 {[%emt 0:04:20]} 10. Nb3 {[%emt 0:00:19]} Bb6 {[%emt 0:00:13]} 11. c3 {[%emt 0:08:16]} h6 {[%emt 0:02:27]} 12. Re1 {[%emt 0:03:17]} Bg4 {[%emt 0:03:44]} 13. Qd3 {[%emt 0:12:08]} Qd7 {[%emt 0:12:03]} 14. Ne5 {[%emt 0:03:04]} Nxe5 {[%emt 0:04:53]} 15. Rxe5 {[%emt 0:00:05]} Bh3 {[%emt 0:01:26]} 16. Nd4 {[%emt 0:08:25]} Bxg2 {[%emt 0:05:37]} 17. Kxg2 {[%emt 0:00:05]} Rfe8 {[%emt 0:02:37]} 18. Rxe8+ {[%emt 0:04:05]} Rxe8 {[%emt 0:00:03]} 19. Bd2 {[%emt 0:00:41]} Re4 {[%emt 0:09:05]} 20. f3 {[%emt 0:01:36]} Re8 {[%emt 0:01:19]} 21. Be3 {[%emt 0:06:12]} Qa4 {[%emt 0:06:22]} 22. b3 {[%emt 0:06:59]} Qa3 {[%emt 0:00:35]} 23. Nc2 {[%emt 0:00:16]} Qd6 {[%emt 0:06:14]} 24. Re1 {[%emt 0:00:26]} Re6 {[%emt 0:03:03]} 25. Bf4 {[%emt 0:01:04]} Qe7 {[%emt 0:00:41]} 26. Rxe6 {[%emt 0:00:28]} fxe6 {[%emt 0:01:17]} 27. Be3 {[%emt 0:03:07]} Qd6 {[%emt 0:01:21]} 28. c4 {[%emt 0:01:11]} Bxe3 {[%emt 0:00:45]} 29. Nxe3 {[%emt 0:00:37]} Qa3 {[%emt 0:01:15]} 30. cxd5 {[%emt 0:00:28]} Qxa2+ {[%emt 0:00:22]} 31. Kh3 {[%emt 0:00:02]} exd5 {[%emt 0:03:49]} 32. Nxd5 {[%emt 0:00:05]} Qa1 {[%emt 0:03:34]} 33. Qc4 {[%emt 0:05:19]} Kh7 {[%emt 0:01:43]} 34. Nxf6+ {[%emt 0:00:12]} Qxf6 {[%emt 0:00:13]} 35. Qe4+ {[%emt 0:00:04]} Qg6 {[%emt 0:00:23]} 36. Qxb7 {[%emt 0:00:10]} Qh5+ {[%emt 0:01:25]} 37. Kg2 {[%emt 0:00:06]} a5 {[%emt 0:00:15]} 38. g4 {[%emt 0:10:48]} Qg5 {[%emt 0:01:40]} 39. Qe4+ {[%emt 0:03:51]} Kg8 {[%emt 0:00:08]} 40. Qe8+ {[%emt 0:02:31]} Kh7 {[%emt 0:00:03]} 41. Qe4+ {[%emt 0:00:04]} Kg8 {[%emt 0:00:08]} 42. Qe6+ {[%emt 0:00:03]} Kh8 {[%emt 0:00:38]} 43. Qc8+ {[%emt 0:01:26]} Kh7 {[%emt 0:00:06]} 44. Qf5+ {[%emt 0:02:32]} Qxf5 {[%emt 0:06:13]} 45. gxf5 {[%emt 0:00:04]} Kg8 {[%emt 0:00:05]} 46. Kg3 {[%emt 0:00:03]} Kf7 {[%emt 0:00:11]} 47. Kf4 {[%emt 0:00:19]} Kf6 {[%emt 0:00:08]} 48. h3 {[%emt 0:00:12]} Kf7 {[%emt 0:00:27]} 49. Ke5 {[%emt 0:03:26]} Ke7 {[%emt 0:00:03]} 50. h4 {[%emt 0:00:37]} h5 {[%emt 0:01:07]} 51. f4 {[%emt 0:00:12]} Kf7 {[%emt 0:01:22]} 52. f6 {[%emt 0:00:15]} gxf6+ {[%emt 0:00:25]} 53. Kf5 {[%emt 0:00:03]} Ke7 {[%emt 0:00:43]} 54. Kg6 {[%emt 0:00:51]} Ke6 {[%emt 0:00:02]} 55. Kxh5 {[%emt 0:01:13]} Kf5 {[%emt 0:00:02]} 56. Kh6 {[%emt 0:00:08]} Kxf4 {[%emt 0:00:53]} 57. Kg6 {[%emt 0:00:05]} f5 {[%emt 0:01:21]} 58. h5 {[%emt 0:00:05]} Ke4 {[%emt 0:00:32]} 59. h6 {[%emt 0:00:15]} f4 {[%emt 0:00:03]} 60. h7 {[%emt 0:00:05]} 1-0